Cogmind - Beta 15 --- EXPLORER MODE // 2025.10.10 @ 18:19:00 Player: GermanMO Result: Core destroyed Performance ------------- Evolutions (5) 2500 Regions Visited (8) 1600 Robots Destroyed (19) 95 Value Destroyed (807) 807 Prototype IDs (0) 0 Alien Tech Used (0) 0 Bonus (1430) 1430 TOTAL SCORE: 6432 Bonus ------- Follower Combat Kills 330 Entered DSFs 500 Met Imprinter 300 Was Imprinted 300 Cogmind --------- Core Integrity 0/1000 Matter 87/300 Energy 20/220 System Corruption 1% Temperature Critical (1543) Movement Walking (120) Location -5/DSF Parts ------- > --- POWER (2) -------- Micro Fission Core Light Antimatter Reactor > --- PROPULSION (5) --- VSS Leg Flexi-carbon Leg Flexi-carbon Leg Thunder Leg > --- UTILITY (8) ------ Advanced Heat Sink Improved Signal Interpreter 0b10 Decoder Chip [Looter] 0b10 Decoder Chip [Scout] 0b10 Decoder Chip [Skirmisher] Improved Kinecellerator Weapon Cycler Weapon Cycler > --- WEAPON (3) ------- Advanced Assault Cannon Advanced Assault Cannon CR-A16's Pointy Stick > --- INVENTORY (5) ---- Improved Sensor Array Improved Signal Interpreter Peak State ------------ > --- POWER ------------ Micro Fission Core Light Antimatter Reactor > --- PROPULSION ------- VSS Leg Flexi-carbon Leg Flexi-carbon Leg Thunder Leg > --- UTILITY ---------- Advanced Heat Sink Improved Signal Interpreter 0b10 Decoder Chip [Looter] 0b10 Decoder Chip [Scout] 0b10 Decoder Chip [Skirmisher] Improved Kinecellerator Weapon Cycler Weapon Cycler > --- WEAPON ----------- Advanced Assault Cannon Advanced Assault Cannon CR-A16's Pointy Stick > --- INVENTORY -------- Improved Sensor Array Improved Signal Interpreter [Rating: 81] Favorites ----------- Power Ion Engine Engine Ion Engine Power Core Fusion Compressor Reactor Light Antimatter Reactor Propulsion VTOL Module Leg Flexi-carbon Leg Flight Unit VTOL Module Utility 0b10 Decoder Chip [Scout] Device Sensor Array Processor 0b10 Decoder Chip [Scout] Weapon CR-A16's Pointy Stick Energy Gun EM Pulse Gun Ballistic Cannon Advanced Assault Cannon Impact Weapon Hammer Piercing Weapon CR-A16's Pointy Stick Build | -11 -10 -9 -9 -7 -6 -6 -5 -5 ------- Run | Yrd Mat Mat Min Zio Pro Fac Fac DSF Slots Evolved 11 | . 1 2 . . . 6 2 . Power 1 | . . . . . . 1 . . Propulsion 3 | . 1 . . . . 1 1 . Utility 6 | . . 2 . . . 3 1 . Weapon 1 | . . . . . . 1 . . Parts Attached 33 | . 6 5 . 4 1 2 . 15 Power 5 | . . 1 . . . . . 4 Engine 1 | . . 1 . . . . . . Core 3 | . . . . . . . . 3 Reactor 1 | . . . . . . . . 1 Propulsion 8 | . . 3 . . 1 . . 4 Treads . | . . . . . . . . . Leg 4 | . . . . . . . . 4 Wheel . | . . . . . . . . . Hover . | . . . . . . . . . Flight 4 | . . 3 . . 1 . . . Utility 14 | . 3 1 . 3 . 2 . 5 Device 7 | . 1 . . . . 1 . 5 Storage . | . . . . . . . . . Processor 7 | . 2 1 . 3 . 1 . . Hackware . | . . . . . . . . . Protection . | . . . . . . . . . Artifact . | . . . . . . . . . Weapon 6 | . 3 . . 1 . . . 2 Energy Gun 2 | . 2 . . . . . . . Energy Cannon . | . . . . . . . . . Ballistic Gun . | . . . . . . . . . Ballistic Cannon 2 | . . . . . . . . 2 Launcher . | . . . . . . . . . Special Weapon . | . . . . . . . . . Impact Weapon 1 | . 1 . . . . . . . Slashing Weapon . | . . . . . . . . . Piercing Weapon 1 | . . . . 1 . . . . Special Melee Weapon . | . . . . . . . . . Unidentified Prototypes . | . . . . . . . . . Parts Lost 7 | . . . . . 5 . . 2 Power . | . . . . . . . . . Propulsion 4 | . . . . . 4 . . . Utility 3 | . . . . . 1 . . 2 Weapon . | . . . . . . . . . Highest Loss Streak 3 | . . . . . 3 . . 1 To Critical Strikes . | . . . . . . . . . Average Backups 1 | . 3 2 1 1 1 . . 2 Power . | . 1 . . . . . . . Propulsion . | . . . . . . . . . Utility 1 | . 1 1 1 1 1 . . 2 Weapon . | . . . . . . . . . Tool/Special . | . . . . . . . . . Unused Backups 3 | . . . . . . 1 . 2 Power . | . . . . . . . . . Propulsion . | . . . . . . . . . Utility 3 | . . . . . . 1 . 2 Weapon . | . . . . . . . . . Tool/Special . | . . . . . . . . . Average Slot Usage (%) 56 | . 25 37 70 74 53 35 33 68 Engine 3 | . . 1 10 10 2 . . . Leg 3 | . . . . . . . . 19 Flight 10 | . . 6 30 30 8 . . . Device 6 | . 4 10 10 10 1 5 5 8 Processor 18 | . 7 10 10 13 30 23 22 22 Energy Gun 1 | . 10 . . . . . . . Ballistic Cannon 1 | . . . . . . . . 7 Impact Weapon 4 | . 2 10 10 10 2 . . . Piercing Weapon 3 | . . . . 1 10 6 5 5 Peak Build Rating 81 | . 5 10 10 27 27 25 25 81 Average Rating 22 | . 2 4 10 12 21 24 25 56 On Entrance 13 | . . 3 10 10 27 19 25 25 Naked Turns 25 | . 23 2 . . . . . . Heaviest Build 40 | . 5 8 8 11 11 4 4 40 Greatest Support 75 | 3 3 12 12 12 12 3 3 75 Greatest Overweight (x) 2 | . 1 . . . 2 1 1 1 Average Overweight (x) . | . . . . . . . 1 . Largest Inventory Capacity 5 | 5 5 5 5 5 5 5 5 5 Average Capacity 5 | 5 5 5 5 5 5 5 5 5 Most Carried 5 | 3 5 5 1 2 2 3 2 5 Average Carried 1 | . 3 2 1 1 1 . . 2 Final Capacity 5 | 5 5 5 5 5 5 5 5 5 Final Carried 3 | 3 3 1 1 1 1 . 2 2 Class Distribution -------------------- 64% | Hacker-Mutant 35% | Hacker-Sprinter Dominant Class ---------------- Hacker-Mutant | -10/Materials Hacker-Mutant | -9/Materials Hacker-Sprinter | -9/Mines Hacker-Sprinter | -7/Zion Hacker-Mutant | -6/Proximity Caves Hacker-Mutant | -6/Factory Hacker-Mutant | -5/Factory Hacker-Mutant | -5/DSF Resources | -11 -10 -9 -9 -7 -6 -6 -5 -5 ----------- Run | Yrd Mat Mat Min Zio Pro Fac Fac DSF Matter Collected 1059 | 200 100 40 30 . 35 . . 654 Remotely . | . . . . . . . . . Salvage Created 1116 | . 140 74 . . 316 . . 586 Parts 29 | . 4 3 . . 4 . . 18 Haulers Intercepted 2 | . 2 . . . . . . . Recyclers Shooed . | . . . . . . . . . Parts Field Recycled . | . . . . . . . . . Retrieved Matter . | . . . . . . . . . Parts Self-Destructed . | . . . . . . . . . Prevented . | . . . . . . . . . Kills | -11 -10 -9 -9 -7 -6 -6 -5 -5 ------- Run | Yrd Mat Mat Min Zio Pro Fac Fac DSF Combat Hostiles Destroyed 15 | . . 4 . . 3 . . 8 Melee 5 | . . 3 . . 2 . . . Cannons 8 | . . . . . . . . 8 Classes Destroyed 9 | . 3 2 . . 1 . . 3 Worker 1 | . 1 . . . . . . . Hauler 2 | . 2 . . . . . . . Watcher 1 | . 1 . . . . . . . Swarmer 3 | . . 3 . . . . . . Grunt 6 | . . . . . 3 . . 3 Sentry 1 | . . 1 . . . . . . Specialist 2 | . . . . . . . . 2 Hunter 2 | . . . . . . . . 2 Heavy 1 | . . . . . . . . 1 Best Kill Streak 3 | . 2 2 . . 1 . . 3 Combat Bots Only 3 | . . 2 . . 1 . . 3 Max Kills in Single Turn 1 | . 1 1 . . 1 . . 1 Gunslinging . | . . . . . . . . . Exploded . | . . . . . . . . . Melee 1 | . . 1 . . 1 . . . Uniques/NPCs Destroyed . | . . . . . . . . . Combat | -11 -10 -9 -9 -7 -6 -6 -5 -5 -------- Run | Yrd Mat Mat Min Zio Pro Fac Fac DSF Hostile Shots Fired 216 | . . 42 . . 61 9 . 104 Missed 76 | . . 14 . . 20 3 . 39 Hits 140 | . . 28 . . 41 6 . 65 Projectile 140 | . . 28 . . 41 6 . 65 Critical Strikes 8 | . . 1 . . 4 . . 3 Part Disruptions 1 | . . . . . . . . 1 Damage Taken 2422 | . . 148 . . 457 29 . 1788 Core 1460 | . . 111 . . 215 26 . 1108 Absorbed by Shields . | . . . . . . . . . Ignored by Resistances 874 | . . 103 . . 274 19 . 478 Core Remaining (%) 78 | 100 100 . . . 18 96 . . Volleys Fired 56 | . 14 . . . . . . 42 Largest 2 | . 2 . . . . . . 2 Hottest 90 | . 90 . . . . . . 80 Shots Fired 102 | . 28 . . . . . . 74 Gun 28 | . 28 . . . . . . . Cannon 74 | . . . . . . . . 74 Launcher . | . . . . . . . . . Special . | . . . . . . . . . Kinetic 74 | . . . . . . . . 74 Thermal 14 | . 14 . . . . . . . Explosive . | . . . . . . . . . Electromagnetic 14 | . 14 . . . . . . . Robot Hit Streak 18 | . 7 . . . . . . 18 Robot Miss Streak 2 | . . . . . . . . 2 Penetration Max . | . . . . . . . . . Secondary Targets . | . . . . . . . . . Shots Hit Robots 104 | . 9 15 . . 20 . . 60 Core Hits 35 | . 5 2 . . 5 . . 23 Critical Kills 1 | . . 1 . . . . . . Critical Parts Destroyed 2 | . 1 . . . 1 . . . Critical Strikes 8 | . 1 2 . . 2 . . 3 Blast 3 | . . . . . . . . 3 Smash 4 | . 1 2 . . 1 . . . Impale 1 | . . . . . 1 . . . Melee Attacks 61 | . 4 19 . . 27 10 1 . Impact 29 | . 4 19 . . 6 . . . Slashing . | . . . . . . . . . Piercing 32 | . . . . . 21 10 1 . Sneak Attacks 3 | . 1 1 . . 1 . . . Combat Hostiles 1 | . . . . . 1 . . . Follow-up Attacks 1 | . . . . . 1 . . . Damage Inflicted 3315 | . 197 377 . . 805 . . 1936 Guns 91 | . 91 . . . . . . . Cannons 1936 | . . . . . . . . 1936 Explosions 47 | . 47 . . . . . . . Melee 1241 | . 59 377 . . 805 . . . Ramming . | . . . . . . . . . Kinetic 1936 | . . . . . . . . 1936 Thermal 84 | . 84 . . . . . . . Explosive . | . . . . . . . . . Electromagnetic 54 | . 54 . . . . . . . Impact 607 | . 59 377 . . 171 . . . Slashing . | . . . . . . . . . Piercing 634 | . . . . . 634 . . . Highest Corruption 1 | . . . . . . . . 1 Average Corruption 1 | . . . . . . . . 1 Corruption Purged . | . . . . . . . . . Corruption Blocked . | . . . . . . . . . Effects 4 | . . . . . . . . 4 Matter Fused 2 | . . . . . . . . 2 Data Loss (major) 1 | . . . . . . . . 1 Weapon Failures 1 | . . . . . . . . 1 Overload Shots . | . . . . . . . . . Overflow Damage 177 | . 24 26 . . 109 . . 18 Projectiles 18 | . . . . . . . . 18 Explosions . | . . . . . . . . . Melee 159 | . 24 26 . . 109 . . . Knockbacks 18 | . 1 2 . . 1 . . 14 Impact 4 | . 1 2 . . 1 . . . Kinetic 14 | . . . . . . . . 14 Secondary . | . . . . . . . . . Self-Inflicted Damage . | . . . . . . . . . Shots . | . . . . . . . . . Rammed . | . . . . . . . . . Targets Rammed . | . . . . . . . . . Kicked . | . . . . . . . . . Crushed . | . . . . . . . . . Highest Temperature 1543 | . 60 . . . 27 . . 1543 Average Temperature 402 | . 25 . . . 17 . . 593 Received Heat Transfer 582 | . . 27 . . 318 18 . 219 Effects 51 | . . . . . . . . 51 Shutdowns 8 | . . . . . . . . 8 Energy Bleed 4 | . . . . . . . . 4 Interference 12 | . . . . . . . . 12 Matter Decay 2 | . . . . . . . . 2 Short Circuit 2 | . . . . . . . . 2 Damage (minor) 2 | . . . . . . . . 2 Damage (major) 14 | . . . . . . . . 14 Damage (core) 7 | . . . . . . . . 7 Siege Activations . | . . . . . . . . . Martial Activations . | . . . . . . . . . Shielding Activations . | . . . . . . . . . Robots Disrupted . | . . . . . . . . . Combat Hostiles . | . . . . . . . . . Robots Corrupted 3 | . 1 1 . . 1 . . . Combat Hostiles 2 | . . 1 . . 1 . . . Parts Fried 6 | . 1 3 . . 2 . . . Impact Corruptions 5 | . 1 3 . . 1 . . . Robots Melted . | . . . . . . . . . Combat Hostiles . | . . . . . . . . . Parts Melted . | . . . . . . . . . Heat Transferred 211 | . 211 . . . . . . . Parts Sabotaged . | . . . . . . . . . Parts Stolen . | . . . . . . . . . Parts Stripped . | . . . . . . . . . Power Chain Reactions 1 | . 1 . . . . . . . Alert | -11 -10 -9 -9 -7 -6 -6 -5 -5 ------- Run | Yrd Mat Mat Min Zio Pro Fac Fac DSF Maximum Alert Level 1 | . . . . . . . . 1 Low Security (%) 90 | 100 100 100 100 . . 100 100 74 Level 1 9 | . . . . . . . . 25 Level 2 . | . . . . . . . . . Level 3 . | . . . . . . . . . Level 4 . | . . . . . . . . . Level 5 . | . . . . . . . . . High Security . | . . . . . . . . . Max Security . | . . . . . . . . . Sterilizations 1 | . . . . . . . . 1 Peak Influence 205 | . 12 82 18 . . 16 4 205 Initial 18 | . . . 18 . . . . . Average 34 | . . 23 10 . . . . 84 Influence Increases 848 | . 38 159 . . 394 28 4 225 Destroy 0b10 Robot/C 480 | . . 80 . . 240 . . 160 Destroy 0b10 Robot/NC 45 | . 20 . . . 5 . . 20 Destroy Leader 76 | . 6 30 . . 10 . . 30 Allied During Kill 64 | . . . . . 64 . . . Disable Machine 12 | . 4 . . . . 4 4 . Destroy Structure 21 | . 8 4 . . . 9 . . Partial Spotted 15 | . . 15 . . . . . . Lose Combat Pursuer 135 | . . 30 . . 75 15 . 15 Influence Decreases 643 | . 38 92 64 3 394 28 4 20 Entered New Map 52 | . . . 49 3 . . . . Time Decay 423 | . 38 92 15 . 246 28 4 . Lost Part 70 | . . . . . 50 . . 20 Lost Ally 98 | . . . . . 98 . . . Squads Dispatched 5 | . . 1 . . 1 1 . 2 Investigation . | . . . . . . . . . Extermination 1 | . . . . . . 1 . . Reinforcement 3 | . . 1 . . . . . 2 Assault 1 | . . . . . 1 . . . Garrison . | . . . . . . . . . Intercept . | . . . . . . . . . Searches Triggered . | . . . . . . . . . Construction Impeded . | . . . . . . . . . Haulers Reinforced . | . . . . . . . . . Active Scanning Responses . | . . . . . . . . . Cargo Convoy Interrupts . | . . . . . . . . . Stealth | -11 -10 -9 -9 -7 -6 -6 -5 -5 --------- Run | Yrd Mat Mat Min Zio Pro Fac Fac DSF Distress Signals . | . . . . . . . . . Communications Jammed . | . . . . . . . . . Distress Signals . | . . . . . . . . . Times Spotted 43 | . 2 10 . . 20 2 . 9 Peak Tracking Total 7 | . 1 4 . . 7 1 . 3 Tactical Retreats 6 | . . 1 . . 3 1 . 1 Traps | -11 -10 -9 -9 -7 -6 -6 -5 -5 ------- Run | Yrd Mat Mat Min Zio Pro Fac Fac DSF Traps Triggered 3 | . 2 1 . . . . . . Indirectly . | . . . . . . . . . Trap Hack Attempts . | . . . . . . . . . Triggered . | . . . . . . . . . Disarmed . | . . . . . . . . . Reprogrammed . | . . . . . . . . . Reused . | . . . . . . . . . Traps Extracted . | . . . . . . . . . Installed . | . . . . . . . . . Triggered . | . . . . . . . . . Machines | -11 -10 -9 -9 -7 -6 -6 -5 -5 ---------- Run | Yrd Mat Mat Min Zio Pro Fac Fac DSF Machines Disabled 3 | . 1 . . . . 1 1 . Max in Single Turn 1 | . 1 . . . . 1 1 . Machines Repaired . | . . . . . . . . . Machines Dismantled . | . . . . . . . . . Machines Sabotaged . | . . . . . . . . . Overloaded Fab Kills . | . . . . . . . . . Hacking | -11 -10 -9 -9 -7 -6 -6 -5 -5 --------- Run | Yrd Mat Mat Min Zio Pro Fac Fac DSF Machines Accessed 1 | . . . . . . . 1 . Terminals 1 | . . . . . . . 1 . Fabricators . | . . . . . . . . . Repair Stations . | . . . . . . . . . Recycling Units . | . . . . . . . . . Scanalyzers . | . . . . . . . . . Garrison Access . | . . . . . . . . . Total Hacks 1 | . . . . . . . 1 . Successful 1 | . . . . . . . 1 . Failed . | . . . . . . . . . Catastrophic . | . . . . . . . . . Database Lockouts . | . . . . . . . . . Manual 3 | . . . . 1 . 2 . . Terminals 1 | . . . . . . . 1 . Fabricators . | . . . . . . . . . Repair Stations . | . . . . . . . . . Recycling Units . | . . . . . . . . . Scanalyzers . | . . . . . . . . . Garrison Access . | . . . . . . . . . Terminal Hacks 1 | . . . . . . . 1 . Open DSF 1 | . . . . . . . 1 . Fabricator Hacks . | . . . . . . . . . Repair Station Hacks . | . . . . . . . . . Recycling Unit Hacks . | . . . . . . . . . Scanalyzer . | . . . . . . . . . Garrison Access Hacks . | . . . . . . . . . Unauthorized Hacks . | . . . . . . . . . Terminals . | . . . . . . . . . Fabricators . | . . . . . . . . . Repair Stations . | . . . . . . . . . Recycling Units . | . . . . . . . . . Scanalyzers . | . . . . . . . . . Garrison Access . | . . . . . . . . . Data Cores Recovered . | . . . . . . . . . Used . | . . . . . . . . . Hacking Detections . | . . . . . . . . . Full Trace Events . | . . . . . . . . . Feedback Events . | . . . . . . . . . Feedback Blocked . | . . . . . . . . . Robot Schematics Acquired 3 | . . . . 3 . . . . Robots Built . | . . . . . . . . . Authchips . | . . . . . . . . . Time . | . . . . . . . . . Total Robot Build Rating . | . . . . . . . . . Part Schematics Acquired 14 | . . . . 14 . . . . Parts Built . | . . . . . . . . . Authchips . | . . . . . . . . . Time . | . . . . . . . . . Total Part Build Rating . | . . . . . . . . . Parts Repaired . | . . . . . . . . . Time . | . . . . . . . . . Parts Recycled . | . . . . . . . . . Recycled Matter . | . . . . . . . . . Retrieved Matter . | . . . . . . . . . Retrieved Components . | . . . . . . . . . Parts Scanalyzed . | . . . . . . . . . Part Schematics Acquired . | . . . . . . . . . Parts Damaged . | . . . . . . . . . Bothacking | -11 -10 -9 -9 -7 -6 -6 -5 -5 ------------ Run | Yrd Mat Mat Min Zio Pro Fac Fac DSF Used RIF Installer . | . . . . . . . . . Robots Hacked . | . . . . . . . . . Non-combat . | . . . . . . . . . Combat . | . . . . . . . . . Robot Hacks Applied . | . . . . . . . . . Relay Couplers Released . | . . . . . . . . . Fabnet Peak Effective % . | . . . . . . . . . Robots Rewired . | . . . . . . . . . Allies Hacked . | . . . . . . . . . Hacks Repelled . | . . . . . . . . . Allies | -11 -10 -9 -9 -7 -6 -6 -5 -5 -------- Run | Yrd Mat Mat Min Zio Pro Fac Fac DSF Total Allies 12 | . . . 3 9 . . . . Largest Group 12 | . . . 3 12 12 . . . Highest-Rated Group 334 | . . . 40 334 334 . . . Highest-Rated Ally 41 | . . . 16 41 41 . . . Total Orders . | . . . . . . . . . Ally Attacks 71 | . . . . . 71 . . . Total Damage 1387 | . . . . . 1387 . . . Kills 9 | . . . . . 9 . . . Allies Corrupted . | . . . . . . . . . Allies Melted . | . . . . . . . . . Intel | -11 -10 -9 -9 -7 -6 -6 -5 -5 ------- Run | Yrd Mat Mat Min Zio Pro Fac Fac DSF Active Infowar (turns) 2517 | . 168 184 36 788 472 365 34 470 Optics 893 | . 127 62 36 668 . . . . Sensors 1892 | . 116 184 36 788 68 318 34 348 Decoding 1467 | . . . . 126 472 365 34 470 Robot Analysis Total . | . . . . . . . . . Derelict Logs Recovered 4 | . . . . 2 2 . . . Drone Launches . | . . . . . . . . . Drone Recoveries . | . . . . . . . . . Decoded 0b10 Intel 73 | . . . . . . 26 4 43 Traps 10 | . . . . . . . . 10 Emergency Access 5 | . . . . . . 4 1 . Items 49 | . . . . . . 17 2 30 Garrisons 1 | . . . . . . 1 . . Patrols 1 | . . . . . . . . 1 Reinforcements 2 | . . . . . . . . 2 Guards 5 | . . . . . . 4 1 . Exploration | -11 -10 -9 -9 -7 -6 -6 -5 -5 ------------- Run | Yrd Mat Mat Min Zio Pro Fac Fac DSF Turns Passed 2741 | 33 277 186 36 788 472 365 34 550 Spaces Moved 2510 | 60 305 131 43 847 707 158 30 229 Core 1047 | 60 305 81 . . 404 158 30 9 Treads . | . . . . . . . . . Legs 220 | . . . . . . . . 220 Wheels . | . . . . . . . . . Hover . | . . . . . . . . . Flight 1243 | . . 50 43 847 303 . . . Fastest Speed 30 | 50 50 30 30 30 30 50 100 100 Average Speed 49 | 50 59 43 30 30 45 73 100 109 Slowest Speed 195 | 50 100 50 30 30 195 100 100 120 Overloaded Moves . | . . . . . . . . . Propulsion Burnouts . | . . . . . . . . . Robots Hopped . | . . . . . . . . . Potential Cave-ins . | . . . . . . . . . Cave-ins Triggered . | . . . . . . . . . Exploration Rate (%) 46 | 3 60 24 15 88 85 5 . 88 Regions Visited 8 Branch Regions 3 Pre-discovered Areas 2 | . . . . 1 1 . . . Known Exits Taken 7 | 1 1 1 . 1 1 1 1 . Unknown Exits Taken 1 | . . . 1 . . . . . Scrap Searched 7 | . . . . 4 3 . . . Spaces Dug 13 | . . 4 . . . 9 . . Terrain Destroyed 19 | . 6 4 . . . 9 . . Melee 13 | . . 4 . . . 9 . . Projectile . | . . . . . . . . . AOE 6 | . 6 . . . . . . . Terrain Rammed . | . . . . . . . . . Walls Destroyed . | . . . . . . . . . Machines Disabled . | . . . . . . . . . Actions | -11 -10 -9 -9 -7 -6 -6 -5 -5 --------- Run | Yrd Mat Mat Min Zio Pro Fac Fac DSF Total 3780 | 62 366 225 65 1380 809 387 32 454 Wait 1074 | . 22 65 23 525 73 215 . 151 Move 2502 | 59 304 130 42 846 706 157 29 229 Hop . | . . . . . . . . . Pick Up 40 | 3 9 4 . 4 1 2 2 15 Fast Attach 1 | . . 1 . . . . . . Attach 38 | . 10 6 . 4 1 2 . 15 Detach 1 | . 1 . . . . . . . Swap . | . . . . . . . . . Drop 8 | . 2 . . 1 2 1 . 2 Fire 56 | . 14 . . . . . . 42 Melee 60 | . 4 19 . . 26 10 1 . Ram . | . . . . . . . . . Kick . | . . . . . . . . . Crush . | . . . . . . . . . Escape Stasis . | . . . . . . . . . Rewire . | . . . . . . . . . Trap . | . . . . . . . . . Miscellaneous . | . . . . . . . . . Route ------- -11/Scrapyard -10/Materials -9/Materials -9/Mines -7/Zion -6/Proximity Caves -6/Factory (discovered 2 exits: *Fac / Ext) -5/Factory -5/DSF (discovered 1 exit: *Fac) History --------- Turn | Location | Event 7 | -11/Scrapyard | Identified exit to Materials 7 | -11/Scrapyard | Discovered exit to Materials (range 15) 34 | -11/Scrapyard | Entered Materials 34 | -10/Materials | Evolved 1 slot: Propulsion x1 166 | -10/Materials | Identified exit to Materials 166 | -10/Materials | Discovered exit to Materials (range 12) 311 | -10/Materials | Build established: Hacker-Mutant 311 | -10/Materials | Entered another Materials area 311 | -9/Materials | Evolved 2 slots: Utility x2 480 | -9/Materials | Identified exit to Mines 480 | -9/Materials | Discovered exit to Mines (range 6) 497 | -9/Materials | Entered Mines 498 | -9/Mines | Assisted by bots powering up and referring to "LRC-V3" 526 | -9/Mines | A Derelict revealed a hidden shortcut to a safe place 533 | -9/Mines | Entered Zion 533 | -7/Zion | Accompanied by 3 allies 637 | -7/Zion | Learned Factory trap positions 770 | -7/Zion | Met Imprinter 774 | -7/Zion | Build established: Hacker-Sprinter 845 | -7/Zion | Imprinted 847 | -7/Zion | Declared Zion's savior 936 | -7/Zion | Learned location of Warlord (-4) 968 | -7/Zion | Gained Derelict followers 1241 | -7/Zion | Identified exit to Proximity Caves 1241 | -7/Zion | Discovered exit to Proximity Caves (range 12) 1246 | -7/Zion | Found CR-A16's Pointy Stick 1321 | -7/Zion | Entered Proximity Caves 1321 | -6/Proximity Caves | Accompanied by 12 allies 1420 | -6/Proximity Caves | Lost 3 parts (2n1u) 1528 | -6/Proximity Caves | Attracted the attention of an 0b10 checkpoint 1531 | -6/Proximity Caves | Core integrity fell below 50% 1692 | -6/Proximity Caves | Learned Factory trap positions 1713 | -6/Proximity Caves | Identified exit to Factory 1713 | -6/Proximity Caves | Discovered exit to Factory (range 4) 1753 | -6/Proximity Caves | Attracted the attention of an 0b10 outpost 1756 | -6/Proximity Caves | Core integrity fell below 20% 1761 | -6/Proximity Caves | Build established: Hacker-Mutant 1793 | -6/Proximity Caves | Entered Factory 1793 | -6/Factory | Evolved 6 slots: Power x1, Propulsion x1, Utility x3, Weapon x1 1794 | -6/Factory | Identified exit to Extension 1795 | -6/Factory | Loaded intel: 113 trap records 1822 | -6/Factory | Lost 11 allies 1901 | -6/Factory | Identified exit to Factory 1901 | -6/Factory | Discovered exit to Factory (range 3) 2158 | -6/Factory | Entered another Factory area 2158 | -5/Factory | Evolved 2 slots: Propulsion x1, Utility x1 2159 | -5/Factory | Loaded intel: 89 trap records 2160 | -5/Factory | Identified exit to DSF 2192 | -5/Factory | Entered DSF 2416 | -5/DSF | Additional patrols routed to DSF 2591 | -5/DSF | Sterilization system engaged 2611 | -5/DSF | Ambient heat levels rising (+10) 2626 | -5/DSF | Ambient heat levels rising (+10) 2641 | -5/DSF | Ambient heat levels rising (+10) 2656 | -5/DSF | Ambient heat levels rising (+10) 2671 | -5/DSF | Ambient heat levels rising (+10) 2686 | -5/DSF | Ambient heat levels rising (+10) 2701 | -5/DSF | Ambient heat levels rising (+10) 2716 | -5/DSF | Ambient heat levels rising (+10) 2722 | -5/DSF | Core integrity fell below 50% 2730 | -5/DSF | Identified exit to Factory 2730 | -5/DSF | Discovered exit to Factory (range 15) 2731 | -5/DSF | Ambient heat levels rising (+10) 2739 | -5/DSF | Core integrity fell below 20% 2743 | -5/DSF | Core destroyed Last Messages --------------- Overheating: System interference. Imp. Signal Interpreter temporarily disabled. EXIT=FOUND: FACTORY ALERT: Ambient heat levels +10. Power failure, Mic. Fission Core shutdown. Overheating: 0b10 Decoder Chip [Looter] damaged (-1). Flexi-carbon Leg broken. Overheating: Short circuit. Overheating: System interference. Weapon Cycler temporarily disabled. Overheating: Core damaged (-190). Overheating: 0b10 Decoder Chip [Skirmisher] damaged (-7). Overheating: Broken Flexi-carbon Leg damaged (-36). Overheating: Core damaged (-190). Power failure, Mic. Fission Core shutdown. Overheating: Core damaged (-110). Map ----- +----------------------------------------------------+ | * #??????#!! = #????????????????????? | | !#??????#!! %#????????????????????? | | ###??????##" ###????????????????????? | | [[#??????#[[ !!#????????????????????? | | [[#??????#[[! !!#????????????????????? | | [[#??????#[[ !!#????????????????????? | | ############ #######??##????????????? | | ##!!!#!!!###= %###]]]#? #???? #??????? | | ##!!!#!!!## = ##]]]# ## #??????? | | %* =! ^=^^ #??????? | | %! ^%^^ #??????? | | = ! ^ ^^ #??????? | | ##[[[#!!!## %=##!!!#===## #??????? | | ##[[[#!!!### %=###!!!#===#???? #??????? | | ############# %%#######??##????????????? | | ??????????#!! !!#????????????????????? | | ??????????#!! "%!!#????????????????????? | | ??????????#!! "!!#????????????????????? | | ??????????### ###????????????#???????? | | ??????????# !!#???????=???=#???????? | | ??????????# !!#???????==? =#???????? | | ??????????# !!########?? #????????? | | ??????????### ### # #?# ###??????? | | ??????????### ### # ## ""##?????? | | ??????????# """"?????? | | ??????????# ] ] @ <""#??????? | | ??????????# ]^^==#===#==##"""""#??????? | | ??????????# ]]]==########???"""#??????? | | ??????????#########????????????#???????? | | ???????????????????????????????????????? | | ???????????????????????????????????????? | | ???????????????????????????????????????? | | ???????????????????????????????????????? | | ???????????????????????????????????????? | | ???????????????????????????????????????? | | ???????????????????????????????????????? | | | | | | | | | | | | | | | | | | | | | | | | | | | | | +----------------------------------------------------+ Best States ------------- Heat Dissipation 59 Energy Generation 25 Energy Capacity 250 Matter Stores 300 Matter Capacity 300 Sight Range 18 Robot Scan Range 15 Terrain Scan Density 10 Resistance: KI 35 Resistance: TH 35 Resistance: EX 35 Resistance: EM 35 Resistance: I 35 Resistance: S 35 Resistance: P 35 Weapon Cycling 30 Evasion (%) 70 Kinecelleration 40 Offensive Hacking 20 Item Schematics ----------------- Imp. Particle Charger | -7/Zion | Archive Hvy. Ion Cannon | -7/Zion | Archive Adv. ECM Suite | -7/Zion | Archive EM Shield | -7/Zion | Archive Imp. Remote Datajack | -7/Zion | Archive Arm. Huge Wheel | -7/Zion | Archive Power Amplifier | -7/Zion | Archive Remote Datajack | -7/Zion | Archive Fission Core | -7/Zion | Archive Imp. Titanium Leg | -7/Zion | Archive Plasma Rifle | -7/Zion | Archive Imp. Carbon-fiber Leg | -7/Zion | Archive Imp. Medium Armor Plating | -7/Zion | Archive Imp. Coolant Injector | -7/Zion | Archive Robot Schematics ------------------ S-27 Virus | -7/Zion | Archive G-47 Trooper | -7/Zion | Archive L-41 Fighter | -7/Zion | Archive Fabricated ------------ Nothing Repaired ---------- Nothing Alien Tech Used ----------------- None Achievements -------------- Decoder Ring Robot Respite The One Challenges ------------ None Game ------ Seed AerolevGrapheneGun Manual? 0 Play Time 00:55:43 Cumulative 21.9 hours Start 2025.10.10 @ 17:02:07 End 2025.10.10 @ 18:19:00 Sessions 1 Manual Loads 0 Difficulty Explorer Special Mode None Game No. 27 Rogue 8 Adventurer 0 Explorer 19 Win Type - Total 0 Types 0/0/0/0/0/0/0/0/0/0 Lore% 17 Gallery% 22 Achievement% 27 Wizard Run 0 Options --------- Layout 2 ASCII 0 Keyboard 0 Movement Mouse Keybinds 0 Fullscreen 2 Font 24/Smallcaps Map View 50x44 Zoom Use 0% Tactical HUD 0 Map Filters NONE Filters NONE Steam 1 RUN: c955b9eb-c564-45de-988a-6af7c410cb00